[Event "Titled Tuesday Blitz July 20 2021"]
[White "Kretov, Evgenij"]
[Black "Obolentseva, Alexandra"]
[WhiteFideId "4167821"]
[BlackFideId "24153648"]
[WhiteElo "2400"]
[BlackElo "2113"]
[Result "1-0"]
[Round "04"]
[TimeControl "180+1"]
[Date "2021.07.21"]
[WhiteClock "0:00:16"]
[BlackClock "0:00:06"]

1. d4 {[%clk 0:03:00]}  Nf6 {[%clk 0:02:58]} 2. c4 {[%clk 0:03:01]}  g6 {[%clk 0:02:55]} 3. Nc3 {[%clk 0:03:01]}  Bg7 {[%clk 0:02:54]} 4. e4 {[%clk 0:03:01]}  O-O {[%clk 0:02:55]} 5. Be2 {[%clk 0:03:01]}  d6 {[%clk 0:02:55]} 6. Bg5 {[%clk 0:03:02]}  h6 {[%clk 0:02:52]} 7. Be3 {[%clk 0:03:01]}  e5 {[%clk 0:02:48]} 8. d5 {[%clk 0:03:01]}  a5 {[%clk 0:02:45]} 9. Qd2 {[%clk 0:03:02]}  Kh7 {[%clk 0:02:45]} 10. Bd1 {[%clk 0:03:01]}  Na6 {[%clk 0:02:44]} 11. f3 {[%clk 0:03:01]}  b6 {[%clk 0:02:41]} 12. Bc2 {[%clk 0:03:00]}  Nc5 {[%clk 0:02:40]} 13. g4 {[%clk 0:03:00]}  Ba6 {[%clk 0:02:37]} 14. b3 {[%clk 0:02:57]}  Nfd7 {[%clk 0:02:30]} 15. h4 {[%clk 0:02:57]}  Rb8 {[%clk 0:02:22]} 16. h5 {[%clk 0:02:56]}  g5 {[%clk 0:02:21]} 17. Nge2 {[%clk 0:02:57]}  b5 {[%clk 0:02:16]} 18. cxb5 {[%clk 0:02:56]}  Bxb5 {[%clk 0:02:17]} 19. Nxb5 {[%clk 0:02:56]}  Rxb5 {[%clk 0:02:18]} 20. Kf2 {[%clk 0:02:51]}  Qa8 {[%clk 0:01:58]} 21. Rhb1 {[%clk 0:02:47]}  c6 {[%clk 0:01:56]} 22. Nc3 {[%clk 0:02:38]}  Rbb8 {[%clk 0:01:53]} 23. dxc6 {[%clk 0:02:37]}  Qxc6 {[%clk 0:01:54]} 24. Rd1 {[%clk 0:02:27]}  Ne6 {[%clk 0:01:49]} 25. Bd3 {[%clk 0:02:13]}  Nd4 {[%clk 0:01:40]} 26. Bc4 {[%clk 0:02:12]}  Nb6 {[%clk 0:01:36]} 27. Bd5 {[%clk 0:02:10]}  Nxd5 {[%clk 0:01:35]} 28. Nxd5 {[%clk 0:02:10]}  a4 {[%clk 0:01:25]} 29. Rac1 {[%clk 0:01:55]}  Qb5 {[%clk 0:01:19]} 30. Nc3 {[%clk 0:01:53]}  Qb7 {[%clk 0:01:12]} 31. Nxa4 {[%clk 0:01:52]}  Rfc8 {[%clk 0:01:10]} 32. Rxc8 {[%clk 0:01:48]}  Rxc8 {[%clk 0:01:11]} 33. Rc1 {[%clk 0:01:45]}  Rxc1 {[%clk 0:01:09]} 34. Qxc1 {[%clk 0:01:45]}  Qb5 {[%clk 0:01:03]} 35. Qd2 {[%clk 0:01:43]}  d5 {[%clk 0:01:00]} 36. Nc3 {[%clk 0:01:43]}  Qa6 {[%clk 0:00:49]} 37. Nxd5 {[%clk 0:01:42]}  Qe6 {[%clk 0:00:38]} 38. b4 {[%clk 0:01:38]}  Qc6 {[%clk 0:00:34]} 39. Qd3 {[%clk 0:01:31]}  Qa4 {[%clk 0:00:32]} 40. a3 {[%clk 0:01:26]}  Nc2 {[%clk 0:00:30]} 41. Bc1 {[%clk 0:01:25]}  Nd4 {[%clk 0:00:28]} 42. Bb2 {[%clk 0:01:23]}  Nb5 {[%clk 0:00:24]} 43. Ke2 {[%clk 0:01:19]}  Nd4+ {[%clk 0:00:23]} 44. Bxd4 {[%clk 0:01:18]}  exd4 {[%clk 0:00:24]} 45. b5 {[%clk 0:01:03]}  Qa8 {[%clk 0:00:20]} 46. b6 {[%clk 0:01:00]}  Be5 {[%clk 0:00:20]} 47. Qb3 {[%clk 0:00:39]}  Qa6+ {[%clk 0:00:19]} 48. Kf2 {[%clk 0:00:39]}  d3 {[%clk 0:00:18]} 49. b7 {[%clk 0:00:38]}  d2 {[%clk 0:00:18]} 50. Ne3 {[%clk 0:00:31]}  Qa7 {[%clk 0:00:16]} 51. Qxf7+ {[%clk 0:00:30]}  Kh8 {[%clk 0:00:15]} 52. Qe8+ {[%clk 0:00:29]}  Kh7 {[%clk 0:00:15]} 53. Qd7+ {[%clk 0:00:24]}  Kh8 {[%clk 0:00:14]} 54. Ke2 {[%clk 0:00:21]}  d1=Q+ {[%clk 0:00:12]} 55. Nxd1 {[%clk 0:00:19]}  Qa6+ {[%clk 0:00:11]} 56. Kf2 {[%clk 0:00:19]}  Qb6+ {[%clk 0:00:10]} 57. Ne3 {[%clk 0:00:19]}  Qb2+ {[%clk 0:00:10]} 58. Kf1 {[%clk 0:00:19]}  Qc1+ {[%clk 0:00:10]} 59. Nd1 {[%clk 0:00:18]}  Qc4+ {[%clk 0:00:10]} 60. Kf2 {[%clk 0:00:19]}  Qc2+ {[%clk 0:00:10]} 61. Ke1 {[%clk 0:00:18]}  Bg3+ {[%clk 0:00:09]} 62. Kf1 {[%clk 0:00:17]}  Qc4+ {[%clk 0:00:08]} 63. Kg2 {[%clk 0:00:16]}  Bf4 {[%clk 0:00:08]} 64. Qd8+ {[%clk 0:00:15]}  Kh7 {[%clk 0:00:07]} 65. Qd7+ {[%clk 0:00:15]}  Kh8 {[%clk 0:00:06]} 66. Qc8+ {[%clk 0:00:15]}  Qxc8 {[%clk 0:00:06]} 67. bxc8=Q+ {[%clk 0:00:16]} 1-0


[Site "https://www.chess.com"]

[Event "Titled Tuesday Blitz July 20 2021"]
[White "Krivonosov, Oleg"]
[Black "Nazari, Arad"]
[WhiteFideId "11600349"]
[BlackFideId "12577324"]
[WhiteElo "2469"]
[BlackElo "2153"]
[Result "1-0"]
[Round "04"]
[TimeControl "180+1"]
[Date "2021.07.21"]
[WhiteClock "0:00:27"]
[BlackClock "0:00:04"]

1. Nf3 {[%clk 0:03:00]}  Nf6 {[%clk 0:02:58]} 2. c4 {[%clk 0:03:00]}  e6 {[%clk 0:02:56]} 3. g3 {[%clk 0:02:59]}  d5 {[%clk 0:02:56]} 4. d4 {[%clk 0:02:58]}  c6 {[%clk 0:02:55]} 5. Qc2 {[%clk 0:02:58]}  Nbd7 {[%clk 0:02:55]} 6. Bg2 {[%clk 0:02:58]}  Bd6 {[%clk 0:02:56]} 7. O-O {[%clk 0:02:57]}  O-O {[%clk 0:02:56]} 8. Bg5 {[%clk 0:02:56]}  h6 {[%clk 0:02:55]} 9. Bxf6 {[%clk 0:02:56]}  Nxf6 {[%clk 0:02:52]} 10. Nbd2 {[%clk 0:02:56]}  Bd7 {[%clk 0:02:38]} 11. e4 {[%clk 0:02:55]}  dxe4 {[%clk 0:02:39]} 12. Nxe4 {[%clk 0:02:55]}  Nxe4 {[%clk 0:02:40]} 13. Qxe4 {[%clk 0:02:55]}  Qc7 {[%clk 0:02:37]} 14. Ne5 {[%clk 0:02:53]}  Rad8 {[%clk 0:02:29]} 15. Rfd1 {[%clk 0:02:53]}  Be8 {[%clk 0:02:10]} 16. f4 {[%clk 0:02:44]}  f6 {[%clk 0:01:59]} 17. Nf3 {[%clk 0:02:29]}  Bf7 {[%clk 0:01:56]} 18. Rd3 {[%clk 0:02:26]}  g5 {[%clk 0:01:25]} 19. fxg5 {[%clk 0:02:22]}  hxg5 {[%clk 0:01:26]} 20. Rad1 {[%clk 0:02:19]}  Kg7 {[%clk 0:01:23]} 21. R3d2 {[%clk 0:02:14]}  Bg6 {[%clk 0:01:13]} 22. Qe3 {[%clk 0:02:08]}  Rh8 {[%clk 0:01:07]} 23. c5 {[%clk 0:01:53]}  Bxg3 {[%clk 0:00:56]} 24. hxg3 {[%clk 0:01:49]}  Qxg3 {[%clk 0:00:57]} 25. Qf2 {[%clk 0:01:37]}  Qg4 {[%clk 0:00:57]} 26. d5 {[%clk 0:01:26]}  cxd5 {[%clk 0:00:54]} 27. Nd4 {[%clk 0:01:25]}  Be4 {[%clk 0:00:46]} 28. Rf1 {[%clk 0:01:10]}  Rh6 {[%clk 0:00:30]} 29. Nf3 {[%clk 0:00:50]}  Rdh8 {[%clk 0:00:29]} 30. Nh2 {[%clk 0:00:50]}  Qh5 {[%clk 0:00:11]} 31. Bxe4 {[%clk 0:00:46]}  dxe4 {[%clk 0:00:07]} 32. Rd7+ {[%clk 0:00:45]}  Kf8 {[%clk 0:00:07]} 33. Rd8+ {[%clk 0:00:43]}  Kg7 {[%clk 0:00:05]} 34. Rxh8 {[%clk 0:00:43]}  Kxh8 {[%clk 0:00:06]} 35. Qg3 {[%clk 0:00:41]}  f5 {[%clk 0:00:04]} 36. Qe5+ {[%clk 0:00:40]}  Kh7 {[%clk 0:00:05]} 37. Qc7+ {[%clk 0:00:37]}  Kg6 {[%clk 0:00:04]} 38. Qe5 {[%clk 0:00:36]}  Qe2 {[%clk 0:00:04]} 39. Qxe6+ {[%clk 0:00:35]}  Kg7 {[%clk 0:00:04]} 40. Qe7+ {[%clk 0:00:34]}  Kg6 {[%clk 0:00:03]} 41. Qe8+ {[%clk 0:00:34]}  Kg7 {[%clk 0:00:03]} 42. Qe5+ {[%clk 0:00:32]}  Kg6 {[%clk 0:00:03]} 43. Qxf5+ {[%clk 0:00:31]}  Kg7 {[%clk 0:00:03]} 44. Qf7+ {[%clk 0:00:31]}  Kh8 {[%clk 0:00:03]} 45. Qf8+ {[%clk 0:00:31]}  Kh7 {[%clk 0:00:04]} 46. Qf7+ {[%clk 0:00:29]}  Kh8 {[%clk 0:00:02]} 47. Qe8+ {[%clk 0:00:28]}  Kh7 {[%clk 0:00:03]} 48. Qe7+ {[%clk 0:00:27]}  Kg6 {[%clk 0:00:04]} 49. Qe6+ {[%clk 0:00:27]} 1-0


[Site "https://www.chess.com"]

[Event "Titled Tuesday Blitz July 20 2021"]
[White "Le, Tuan Minh"]
[Black "Rodriguez Hernandez, Luis Daniel"]
[WhiteFideId "12401153"]
[BlackFideId "3506770"]
[WhiteElo "2450"]
[BlackElo "2133"]
[Result "1-0"]
[Round "04"]
[TimeControl "180+1"]
[Date "2021.07.20"]
[WhiteClock "0:00:18"]
[BlackClock "0:00:01"]

1. d4 {[%clk 0:03:00]}  Nf6 {[%clk 0:03:00]} 2. Nf3 {[%clk 0:03:00]}  g6 {[%clk 0:03:00]} 3. Bg5 {[%clk 0:02:59]}  Bg7 {[%clk 0:03:01]} 4. Nbd2 {[%clk 0:03:00]}  d6 {[%clk 0:03:01]} 5. c3 {[%clk 0:03:00]}  Nbd7 {[%clk 0:03:02]} 6. e4 {[%clk 0:03:00]}  e5 {[%clk 0:03:00]} 7. Bc4 {[%clk 0:03:00]}  h6 {[%clk 0:02:58]} 8. Bh4 {[%clk 0:03:00]}  c6 {[%clk 0:02:56]} 9. O-O {[%clk 0:03:00]}  Qc7 {[%clk 0:02:54]} 10. Qc2 {[%clk 0:02:59]}  Nh5 {[%clk 0:02:43]} 11. Rfe1 {[%clk 0:02:40]}  Nf8 {[%clk 0:02:44]} 12. Rad1 {[%clk 0:02:18]}  Bg4 {[%clk 0:02:29]} 13. dxe5 {[%clk 0:02:16]}  dxe5 {[%clk 0:02:28]} 14. h3 {[%clk 0:02:13]}  Be6 {[%clk 0:02:21]} 15. Qb3 {[%clk 0:02:02]}  g5 {[%clk 0:02:16]} 16. Bg3 {[%clk 0:02:01]}  Nxg3 {[%clk 0:02:17]} 17. fxg3 {[%clk 0:02:02]}  O-O-O {[%clk 0:01:53]} 18. Nf1 {[%clk 0:01:51]}  Rxd1 {[%clk 0:01:40]} 19. Rxd1 {[%clk 0:01:51]}  Qb6+ {[%clk 0:01:35]} 20. Kh2 {[%clk 0:01:50]}  Bxc4 {[%clk 0:01:31]} 21. Qxc4 {[%clk 0:01:50]}  Ne6 {[%clk 0:01:31]} 22. b4 {[%clk 0:01:42]}  Rd8 {[%clk 0:01:27]} 23. Rxd8+ {[%clk 0:01:31]}  Nxd8 {[%clk 0:01:15]} 24. Qd3 {[%clk 0:01:31]}  a5 {[%clk 0:01:15]} 25. a3 {[%clk 0:01:24]}  axb4 {[%clk 0:01:14]} 26. axb4 {[%clk 0:01:24]}  Qf2 {[%clk 0:00:58]} 27. Ne3 {[%clk 0:01:22]}  f6 {[%clk 0:00:48]} 28. Nf5 {[%clk 0:01:06]}  Bf8 {[%clk 0:00:48]} 29. Qc4 {[%clk 0:01:07]}  Qc2 {[%clk 0:00:26]} 30. b5 {[%clk 0:01:01]}  Kc7 {[%clk 0:00:21]} 31. bxc6 {[%clk 0:01:00]}  bxc6 {[%clk 0:00:20]} 32. Ne3 {[%clk 0:00:59]}  Qb1 {[%clk 0:00:15]} 33. Nd5+ {[%clk 0:00:58]}  Kb7 {[%clk 0:00:09]} 34. Nxf6 {[%clk 0:00:59]}  Be7 {[%clk 0:00:08]} 35. Ng8 {[%clk 0:00:50]}  Bd6 {[%clk 0:00:08]} 36. Nxh6 {[%clk 0:00:50]}  Qc1 {[%clk 0:00:03]} 37. Nf5 {[%clk 0:00:47]}  Bc7 {[%clk 0:00:03]} 38. Ne7 {[%clk 0:00:31]}  g4 {[%clk 0:00:02]} 39. hxg4 {[%clk 0:00:30]}  Qh6+ {[%clk 0:00:01]} 40. Nh4 {[%clk 0:00:31]}  Qg7 {[%clk 0:00:01]} 41. Qb3+ {[%clk 0:00:31]}  Bb6 {[%clk 0:00:01]} 42. Neg6 {[%clk 0:00:24]}  Qf6 {[%clk 0:00:01]} 43. Qb4 {[%clk 0:00:18]} 1-0


[Site "https://www.chess.com"]

[Event "Titled Tuesday Blitz July 20 2021"]
[White "Lovkov, Roman"]
[Black "Bortnyk, Olexandr"]
[WhiteFideId "4157389"]
[BlackFideId "14120828"]
[WhiteElo "2387"]
[BlackElo "2723"]
[Result "0-1"]
[Round "04"]
[TimeControl "180+1"]
[Date "2021.07.20"]
[WhiteClock "0:00:05"]
[BlackClock "0:00:03"]

1. e4 {[%clk 0:03:00]}  Nf6 {[%clk 0:02:59]} 2. e5 {[%clk 0:02:59]}  Nd5 {[%clk 0:03:00]} 3. Nf3 {[%clk 0:02:51]}  d6 {[%clk 0:03:00]} 4. Bc4 {[%clk 0:02:51]}  Nb6 {[%clk 0:03:00]} 5. Bb3 {[%clk 0:02:52]}  Bf5 {[%clk 0:02:55]} 6. O-O {[%clk 0:02:41]}  e6 {[%clk 0:02:50]} 7. a4 {[%clk 0:02:33]}  a5 {[%clk 0:02:43]} 8. d4 {[%clk 0:02:05]}  Nc6 {[%clk 0:02:23]} 9. exd6 {[%clk 0:01:58]}  Bxd6 {[%clk 0:02:22]} 10. Nc3 {[%clk 0:01:35]}  O-O {[%clk 0:02:20]} 11. Nb5 {[%clk 0:01:35]}  Bg4 {[%clk 0:02:08]} 12. h3 {[%clk 0:01:32]}  Bh5 {[%clk 0:02:06]} 13. Re1 {[%clk 0:01:19]}  Nd5 {[%clk 0:01:27]} 14. c3 {[%clk 0:01:04]}  h6 {[%clk 0:01:07]} 15. g4 {[%clk 0:01:00]}  Bg6 {[%clk 0:01:07]} 16. Ne5 {[%clk 0:01:01]}  Nxe5 {[%clk 0:01:02]} 17. dxe5 {[%clk 0:01:02]}  Bc5 {[%clk 0:01:02]} 18. Qf3 {[%clk 0:01:02]}  c6 {[%clk 0:00:59]} 19. Na3 {[%clk 0:00:57]}  f6 {[%clk 0:00:58]} 20. Bxd5 {[%clk 0:00:22]}  cxd5 {[%clk 0:00:54]} 21. Be3 {[%clk 0:00:22]}  fxe5 {[%clk 0:00:53]} 22. Qg3 {[%clk 0:00:22]}  Bxe3 {[%clk 0:00:50]} 23. Rxe3 {[%clk 0:00:23]}  e4 {[%clk 0:00:51]} 24. Nb5 {[%clk 0:00:20]}  Qf6 {[%clk 0:00:47]} 25. Rd1 {[%clk 0:00:18]}  Rad8 {[%clk 0:00:41]} 26. Rd2 {[%clk 0:00:19]}  e5 {[%clk 0:00:41]} 27. Re1 {[%clk 0:00:17]}  d4 {[%clk 0:00:41]} 28. Na3 {[%clk 0:00:07]}  e3 {[%clk 0:00:22]} 29. fxe3 {[%clk 0:00:07]}  dxe3 {[%clk 0:00:23]} 30. Rde2 {[%clk 0:00:07]}  Rd2 {[%clk 0:00:19]} 31. Rxe3 {[%clk 0:00:05]}  Qf2+ {[%clk 0:00:13]} 32. Qxf2 {[%clk 0:00:04]}  Rfxf2 {[%clk 0:00:14]} 33. Rg3 {[%clk 0:00:05]}  Rxb2 {[%clk 0:00:13]} 34. Nc4 {[%clk 0:00:05]}  Ra2 {[%clk 0:00:13]} 35. Nxe5 {[%clk 0:00:06]}  Be8 {[%clk 0:00:08]} 36. h4 {[%clk 0:00:06]}  Bxa4 {[%clk 0:00:07]} 37. g5 {[%clk 0:00:06]}  hxg5 {[%clk 0:00:07]} 38. hxg5 {[%clk 0:00:07]}  Rfe2 {[%clk 0:00:06]} 39. Rxe2 {[%clk 0:00:07]}  Rxe2 {[%clk 0:00:07]} 40. Nc4 {[%clk 0:00:07]}  Bc6 {[%clk 0:00:03]} 41. Nxa5 {[%clk 0:00:07]}  Bd5 {[%clk 0:00:03]} 42. c4 {[%clk 0:00:07]}  Be4 {[%clk 0:00:04]} 43. Nb3 {[%clk 0:00:08]}  Rc2 {[%clk 0:00:04]} 44. c5 {[%clk 0:00:06]}  Bd5 {[%clk 0:00:03]} 45. Nd4 {[%clk 0:00:06]}  Rxc5 {[%clk 0:00:03]} 46. g6 {[%clk 0:00:07]}  Be4 {[%clk 0:00:03]} 47. Ne6 {[%clk 0:00:06]}  Rc1+ {[%clk 0:00:02]} 48. Kf2 {[%clk 0:00:06]}  Rc6 {[%clk 0:00:03]} 49. Nf4 {[%clk 0:00:05]}  b5 {[%clk 0:00:03]} 50. Rg5 {[%clk 0:00:05]}  b4 {[%clk 0:00:03]} 51. Ke3 {[%clk 0:00:06]}  Bc2 {[%clk 0:00:02]} 52. Rb5 {[%clk 0:00:06]}  Bxg6 {[%clk 0:00:02]} 53. Rb8+ {[%clk 0:00:06]}  Kh7 {[%clk 0:00:03]} 54. Rxb4 {[%clk 0:00:05]}  Bf5 {[%clk 0:00:02]} 55. Rb5 {[%clk 0:00:05]}  g6 {[%clk 0:00:03]} 56. Nd5 {[%clk 0:00:05]}  Kh6 {[%clk 0:00:03]} 57. Ne7 {[%clk 0:00:05]}  Re6+ {[%clk 0:00:03]} 0-1


[Site "https://www.chess.com"]

[Event "Titled Tuesday Blitz July 20 2021"]
[White "Madaminov, Mukhiddin"]
[Black "Sukandar, Irine Kharisma"]
[WhiteFideId "14210703"]
[BlackFideId "7101937"]
[WhiteElo "1747"]
[BlackElo "2313"]
[Result "0-1"]
[Round "04"]
[TimeControl "180+1"]
[Date "2021.07.21"]
[WhiteClock "0:00:07"]
[BlackClock "0:00:20"]

1. e4 {[%clk 0:03:00]}  e5 {[%clk 0:02:59]} 2. Nf3 {[%clk 0:03:01]}  Nc6 {[%clk 0:02:59]} 3. d4 {[%clk 0:03:01]}  exd4 {[%clk 0:02:59]} 4. Nxd4 {[%clk 0:03:02]}  Qf6 {[%clk 0:02:59]} 5. Be3 {[%clk 0:02:58]}  Bc5 {[%clk 0:02:56]} 6. c3 {[%clk 0:02:58]}  Nge7 {[%clk 0:02:55]} 7. Bc4 {[%clk 0:02:56]}  Qg6 {[%clk 0:02:52]} 8. Nxc6 {[%clk 0:02:37]}  Bxe3 {[%clk 0:02:37]} 9. Nxe7 {[%clk 0:02:31]}  Qxg2 {[%clk 0:02:36]} 10. Rf1 {[%clk 0:02:26]}  Kxe7 {[%clk 0:02:34]} 11. fxe3 {[%clk 0:02:25]}  f6 {[%clk 0:02:30]} 12. Nd2 {[%clk 0:02:22]}  d6 {[%clk 0:02:29]} 13. Qe2 {[%clk 0:02:20]}  Qg5 {[%clk 0:02:27]} 14. O-O-O {[%clk 0:02:17]}  Bg4 {[%clk 0:02:26]} 15. Nf3 {[%clk 0:02:13]}  Qc5 {[%clk 0:02:27]} 16. Bb3 {[%clk 0:02:06]}  a5 {[%clk 0:02:25]} 17. Rg1 {[%clk 0:02:05]}  h5 {[%clk 0:02:19]} 18. Rd5 {[%clk 0:02:00]}  Qc6 {[%clk 0:02:11]} 19. h3 {[%clk 0:01:57]}  a4 {[%clk 0:02:11]} 20. Bc2 {[%clk 0:01:46]}  a3 {[%clk 0:02:10]} 21. hxg4 {[%clk 0:01:42]}  axb2+ {[%clk 0:02:10]} 22. Kxb2 {[%clk 0:01:40]}  Rxa2+ {[%clk 0:02:08]} 23. Kxa2 {[%clk 0:01:40]}  Qxc3 {[%clk 0:02:07]} 24. Ba4 {[%clk 0:01:08]}  Ra8 {[%clk 0:02:05]} 25. Rd4 {[%clk 0:01:04]}  b5 {[%clk 0:01:56]} 26. Qd2 {[%clk 0:00:58]}  Qc5 {[%clk 0:01:47]} 27. Rc1 {[%clk 0:00:57]}  Qb6 {[%clk 0:01:43]} 28. gxh5 {[%clk 0:00:55]}  c5 {[%clk 0:01:39]} 29. Qg2 {[%clk 0:00:47]}  g5 {[%clk 0:01:34]} 30. Qc2 {[%clk 0:00:35]}  Kf8 {[%clk 0:01:23]} 31. Rb1 {[%clk 0:00:20]}  cxd4 {[%clk 0:01:22]} 32. Nxd4 {[%clk 0:00:21]}  Qc5 {[%clk 0:01:14]} 33. Qxc5 {[%clk 0:00:19]}  dxc5 {[%clk 0:01:13]} 34. Nxb5 {[%clk 0:00:19]}  Rxa4+ {[%clk 0:01:13]} 35. Kb3 {[%clk 0:00:18]}  Rxe4 {[%clk 0:01:12]} 36. Re1 {[%clk 0:00:19]}  Rb4+ {[%clk 0:01:12]} 37. Kc3 {[%clk 0:00:19]}  Rxb5 {[%clk 0:01:13]} 38. Kc4 {[%clk 0:00:19]}  Rb2 {[%clk 0:01:10]} 39. Kxc5 {[%clk 0:00:18]}  Rh2 {[%clk 0:01:11]} 40. Kd6 {[%clk 0:00:19]}  Kf7 {[%clk 0:01:10]} 41. Ra1 {[%clk 0:00:15]}  Rxh5 {[%clk 0:01:10]} 42. Ra7+ {[%clk 0:00:15]}  Kg6 {[%clk 0:01:11]} 43. e4 {[%clk 0:00:10]}  Rh4 {[%clk 0:01:04]} 44. Kd5 {[%clk 0:00:09]}  Rh2 {[%clk 0:00:59]} 45. Ra8 {[%clk 0:00:08]}  Rd2+ {[%clk 0:00:59]} 46. Ke6 {[%clk 0:00:08]}  Re2 {[%clk 0:00:59]} 47. Rg8+ {[%clk 0:00:08]}  Kh7 {[%clk 0:00:52]} 48. Ra8 {[%clk 0:00:07]}  Kg7 {[%clk 0:00:51]} 49. Kf5 {[%clk 0:00:07]}  Rf2+ {[%clk 0:00:50]} 50. Ke6 {[%clk 0:00:08]}  g4 {[%clk 0:00:50]} 51. Ra3 {[%clk 0:00:04]}  Kg6 {[%clk 0:00:49]} 52. Ra8 {[%clk 0:00:02]}  Rf4 {[%clk 0:00:45]} 53. Rg8+ {[%clk 0:00:02]}  Kh5 {[%clk 0:00:45]} 54. e5 {[%clk 0:00:01]}  fxe5 {[%clk 0:00:39]} 55. Kxe5 {[%clk 0:00:02]}  Rf7 {[%clk 0:00:38]} 56. Ke4 {[%clk 0:00:03]}  Kh4 {[%clk 0:00:38]} 57. Ke3 {[%clk 0:00:03]}  Kh3 {[%clk 0:00:38]} 58. Ke2 {[%clk 0:00:03]}  g3 {[%clk 0:00:37]} 59. Rh8+ {[%clk 0:00:02]}  Kg2 {[%clk 0:00:37]} 60. Rg8 {[%clk 0:00:03]}  Re7+ {[%clk 0:00:37]} 61. Kd2 {[%clk 0:00:03]}  Kf2 {[%clk 0:00:37]} 62. Rf8+ {[%clk 0:00:03]}  Kg1 {[%clk 0:00:38]} 63. Rg8 {[%clk 0:00:04]}  g2 {[%clk 0:00:38]} 64. Rg6 {[%clk 0:00:05]}  Re4 {[%clk 0:00:30]} 65. Kd3 {[%clk 0:00:03]}  Re7 {[%clk 0:00:27]} 66. Kd2 {[%clk 0:00:03]}  Rh7 {[%clk 0:00:23]} 67. Ke2 {[%clk 0:00:02]}  Kh1 {[%clk 0:00:23]} 68. Kf2 {[%clk 0:00:02]}  Rf7+ {[%clk 0:00:23]} 69. Ke2 {[%clk 0:00:02]}  g1=Q {[%clk 0:00:22]} 70. Rh6+ {[%clk 0:00:03]}  Qh2+ {[%clk 0:00:22]} 71. Rxh2+ {[%clk 0:00:03]}  Kxh2 {[%clk 0:00:23]} 72. Ke3 {[%clk 0:00:04]}  Kg3 {[%clk 0:00:22]} 73. Ke4 {[%clk 0:00:05]}  Rf1 {[%clk 0:00:20]} 74. Ke5 {[%clk 0:00:06]}  Kg4 {[%clk 0:00:20]} 75. Kd5 {[%clk 0:00:07]} 0-1


[Site "https://www.chess.com"]

[Event "Titled Tuesday Blitz July 20 2021"]
[White "Meissner, Felix"]
[Black "Perez Gormaz, Matias"]
[WhiteFideId "24671827"]
[BlackFideId "3406342"]
[WhiteElo "2390"]
[BlackElo "2414"]
[Result "0-1"]
[Round "04"]
[TimeControl "180+1"]
[Date "2021.07.21"]
[WhiteClock "0:02:18"]
[BlackClock "0:02:24"]

1. e4 {[%clk 0:03:00]}  c5 {[%clk 0:02:59]} 2. Nf3 {[%clk 0:03:00]}  d6 {[%clk 0:03:00]} 3. d4 {[%clk 0:03:00]}  cxd4 {[%clk 0:03:01]} 4. Nxd4 {[%clk 0:03:00]}  Nf6 {[%clk 0:03:01]} 5. f3 {[%clk 0:03:01]}  Nc6 {[%clk 0:03:00]} 6. c4 {[%clk 0:03:01]}  e6 {[%clk 0:03:01]} 7. Nc3 {[%clk 0:03:00]}  Be7 {[%clk 0:03:01]} 8. Nxc6 {[%clk 0:03:00]}  bxc6 {[%clk 0:03:01]} 9. Be3 {[%clk 0:03:00]}  O-O {[%clk 0:03:01]} 10. Be2 {[%clk 0:03:00]}  e5 {[%clk 0:02:59]} 11. O-O {[%clk 0:03:00]}  Be6 {[%clk 0:02:59]} 12. Qd2 {[%clk 0:03:00]}  a5 {[%clk 0:02:57]} 13. Rfd1 {[%clk 0:03:00]}  a4 {[%clk 0:02:56]} 14. b3 {[%clk 0:02:58]}  axb3 {[%clk 0:02:55]} 15. axb3 {[%clk 0:02:59]}  Rxa1 {[%clk 0:02:54]} 16. Rxa1 {[%clk 0:03:00]}  Qb8 {[%clk 0:02:51]} 17. Ra7 {[%clk 0:02:49]}  Nd7 {[%clk 0:02:47]} 18. Qa2 {[%clk 0:02:48]}  Bd8 {[%clk 0:02:40]} 19. Ra6 {[%clk 0:02:39]}  Qb7 {[%clk 0:02:31]} 20. Ra7 {[%clk 0:02:33]}  Qb4 {[%clk 0:02:27]} 21. Bd2 {[%clk 0:02:24]}  Bb6+ {[%clk 0:02:25]} 22. Kh1 {[%clk 0:02:18]}  Qc5 {[%clk 0:02:24]} 0-1


[Site "https://www.chess.com"]

[Event "Titled Tuesday Blitz July 20 2021"]
[White "Melikhov, Evgeny V."]
[Black "Nefedov, Sergey"]
[WhiteFideId "4122046"]
[BlackFideId "24113417"]
[WhiteElo "1965"]
[BlackElo "2385"]
[Result "0-1"]
[Round "04"]
[TimeControl "180+1"]
[Date "2021.07.21"]
[WhiteClock "0:00:05"]
[BlackClock "0:00:58"]

1. d4 {[%clk 0:03:00]}  Nf6 {[%clk 0:02:59]} 2. c4 {[%clk 0:03:01]}  e6 {[%clk 0:02:58]} 3. Nc3 {[%clk 0:03:01]}  d5 {[%clk 0:02:57]} 4. cxd5 {[%clk 0:03:00]}  exd5 {[%clk 0:02:56]} 5. Bg5 {[%clk 0:03:00]}  c6 {[%clk 0:02:57]} 6. Qc2 {[%clk 0:02:59]}  Nbd7 {[%clk 0:02:54]} 7. e3 {[%clk 0:02:55]}  Be7 {[%clk 0:02:54]} 8. Bd3 {[%clk 0:02:55]}  Nh5 {[%clk 0:02:45]} 9. Bxe7 {[%clk 0:02:53]}  Qxe7 {[%clk 0:02:46]} 10. Nge2 {[%clk 0:02:48]}  g6 {[%clk 0:02:46]} 11. O-O-O {[%clk 0:02:42]}  Ndf6 {[%clk 0:02:44]} 12. h3 {[%clk 0:02:39]}  Ng7 {[%clk 0:02:43]} 13. g4 {[%clk 0:02:39]}  h5 {[%clk 0:02:38]} 14. Kb1 {[%clk 0:02:32]}  Be6 {[%clk 0:02:27]} 15. g5 {[%clk 0:02:19]}  Nd7 {[%clk 0:02:25]} 16. h4 {[%clk 0:02:14]}  O-O {[%clk 0:02:20]} 17. f3 {[%clk 0:02:08]}  Rfe8 {[%clk 0:02:17]} 18. e4 {[%clk 0:02:07]}  Nb6 {[%clk 0:02:15]} 19. e5 {[%clk 0:02:02]}  Bf5 {[%clk 0:02:14]} 20. Nf4 {[%clk 0:01:59]}  Nc4 {[%clk 0:02:04]} 21. Rde1 {[%clk 0:01:51]}  Qb4 {[%clk 0:01:55]} 22. Ka1 {[%clk 0:00:57]}  Ne6 {[%clk 0:01:52]} 23. Bxf5 {[%clk 0:00:45]}  Nxd4 {[%clk 0:01:48]} 24. Qf2 {[%clk 0:00:36]}  Nxf5 {[%clk 0:01:45]} 25. Nd3 {[%clk 0:00:20]}  Qb6 {[%clk 0:01:43]} 26. Qxb6 {[%clk 0:00:18]}  axb6 {[%clk 0:01:39]} 27. b3 {[%clk 0:00:13]}  Nce3 {[%clk 0:01:37]} 28. Kb2 {[%clk 0:00:13]}  c5 {[%clk 0:01:15]} 29. f4 {[%clk 0:00:11]}  Ng2 {[%clk 0:01:12]} 30. Re2 {[%clk 0:00:10]}  Ngxh4 {[%clk 0:01:09]} 31. Nxd5 {[%clk 0:00:09]}  Red8 {[%clk 0:01:07]} 32. Nf6+ {[%clk 0:00:09]}  Kg7 {[%clk 0:01:07]} 33. Nf2 {[%clk 0:00:07]}  Ng3 {[%clk 0:01:06]} 34. Rxh4 {[%clk 0:00:07]}  Nxe2 {[%clk 0:01:06]} 35. N2e4 {[%clk 0:00:07]}  Rd4 {[%clk 0:01:02]} 36. Nd6 {[%clk 0:00:07]}  Rd2+ {[%clk 0:01:00]} 37. Kb1 {[%clk 0:00:05]}  Nc3+ {[%clk 0:00:58]} 38. Kc1 {[%clk 0:00:05]}  Raxa2 {[%clk 0:00:58]} 0-1


[Site "https://www.chess.com"]